fUSD/lending_fUSD_20250220
["ID","MTS","AMOUNT","RATE_DAILY","PERIOD"]
[353818527,1740077444697,-500.0,0.00010958,2]
[353818529,1740077444706,-500.0,0.00010958,2]
[353818531,1740077444716,-500.0,0.00010958,2]
[353818533,1740077444725,-500.0,0.00010958,2]
[353818535,1740077444735,-500.0,0.00010958,2]
[353818537,1740077444745,-500.0,0.00010958,2]
[353818539,1740077444755,-500.0,0.00010958,2]
[353818541,1740077444766,-500.0,0.00010958,2]
[353818543,1740077444777,-500.0,0.00010958,2]
[353818545,1740077444788,-500.0,0.00010958,2]
[353818547,1740077444797,-500.0,0.00010958,2]
[353818549,1740077444808,-500.0,0.00010958,2]
[353818551,1740077444818,-500.0,0.00010958,2]
[353818553,1740077444827,-504.75345063,0.00010958,2]
[353818555,1740077444837,-500.0,0.00010958,2]
[353818557,1740077444847,-588.71899232,0.00010958,2]
[353818559,1740077444856,-500.0,0.00010958,2]
[353818561,1740077444866,-500.0,0.00010958,2]
[353818564,1740077444876,-500.0,0.00010958,2]
[353818566,1740077444886,-500.0,0.00010958,2]
[353818568,1740077444897,-500.0,0.00010958,2]
[353818570,1740077444906,-500.0,0.00010958,2]
[353818572,1740077444916,-500.0,0.00010958,2]
[353818574,1740077444926,-500.0,0.00010958,2]
[353818576,1740077444936,-500.0,0.00010958,2]
[353818578,1740077444945,-500.0,0.00010958,2]
[353818580,1740077444957,-500.0,0.00010958,2]
[353818582,1740077444967,-488.48310354,0.00010958,2]
[353818584,1740077444975,-180.006349,0.00010958,2]
[353818586,1740077444985,-500.0,0.00010958,2]
[353818588,1740077444995,-500.0,0.00010958,2]
[353818590,1740077445005,-500.0,0.00010958,2]
[353818592,1740077445016,-627.38969889,0.00010958,2]
[353818594,1740077445025,-500.0,0.00010958,2]
[353818596,1740077445038,-500.0,0.00010958,2]
[353818598,1740077445048,-500.0,0.00010958,2]
[353818600,1740077445058,-535.89314852,0.00010958,2]
[353818602,1740077445069,-500.0,0.00010958,2]
[353818604,1740077445080,-500.0,0.00010958,2]
[353818606,1740077445090,-500.0,0.00010958,2]
[353818608,1740077445099,-500.0,0.00010958,2]
[353818610,1740077445109,-500.0,0.00010958,2]
[353818612,1740077445119,-500.0,0.00010958,2]
[353818614,1740077445130,-500.0,0.00010958,2]
[353818616,1740077445139,-500.0,0.00010958,2]
[353818618,1740077445149,-500.0,0.00010958,2]
[353818620,1740077445159,-500.0,0.00010958,2]
[353818622,1740077445168,-500.0,0.00010958,2]
[353818624,1740077445178,-514.76,0.00010958,2]
[353818626,1740077445187,-500.0,0.00010958,2]
[353818628,1740077445197,-500.0,0.00010958,2]
[353818630,1740077445206,-153.65022207,0.00010958,2]
[353818631,1740077445215,-411.04348645,0.00010958,2]
[353818634,1740077445225,-500.0,0.00010958,2]
[353818636,1740077445235,-500.0,0.00010958,2]
[353818638,1740077445244,-500.0,0.00010958,2]
[353818640,1740077445254,-500.0,0.00010958,2]
[353818642,1740077445264,-500.0,0.00010958,2]
[353818644,1740077445274,-500.0,0.00010958,2]
[353818646,1740077445283,-500.0,0.00010958,2]
[353818647,1740077445293,-500.0,0.00010958,2]
[353818649,1740077445302,-500.0,0.00010958,2]
[353818651,1740077445312,-500.0,0.00010958,2]
[353818653,1740077445322,-500.0,0.00010958,2]
[353818656,1740077445332,-500.0,0.00010958,2]
[353818657,1740077445341,-500.0,0.00010958,2]
[353818659,1740077445351,-500.0,0.00010958,2]
[353818661,1740077445360,-617.88,0.00010958,2]
[353818663,1740077445370,-500.0,0.00010958,2]
[353818665,1740077445379,-610.74,0.00010958,2]
[353818668,1740077445388,-500.0,0.00010958,2]
[353818669,1740077445398,-500.0,0.00010958,2]
[353818672,1740077445408,-500.0,0.00010958,2]
[353818674,1740077445418,-630.44978914,0.00010958,2]
[353818676,1740077445427,-500.0,0.00010958,2]
[353818678,1740077445436,-500.0,0.00010958,2]
[353818680,1740077445445,-500.0,0.00010958,2]
[353818681,1740077445454,-500.0,0.00010958,2]
[353818683,1740077445463,-500.0,0.00010958,2]
[353818685,1740077445473,-500.0,0.00010958,2]
[353818688,1740077445482,-500.0,0.00010958,2]
[353818689,1740077445491,-500.0,0.00010958,2]
[353818691,1740077445501,-500.0,0.00010958,2]
[353818693,1740077445511,-500.0,0.00010958,2]
[353818696,1740077445520,-539.11446481,0.00010958,2]
[353818697,1740077445529,-500.0,0.00010958,2]
[353818699,1740077445539,-500.0,0.00010958,2]
[353818719,1740077445718,-500.0,0.00010958,2]
[353818721,1740077445728,-500.0,0.00010958,2]
[353818723,1740077445737,-500.0,0.00010958,2]
[353818725,1740077445747,-500.0,0.00010958,2]
[353818727,1740077445756,-500.0,0.00010958,2]
[353818728,1740077445769,-500.0,0.00010958,2]
[353818729,1740077445779,-500.0,0.00010958,2]
[353818730,1740077445788,-500.0,0.00010958,2]
[353818731,1740077445798,-500.0,0.00010958,2]
[353818732,1740077445807,-500.0,0.00010958,2]
[353818733,1740077445817,-500.0,0.00010958,2]
[353818734,1740077445826,-500.0,0.00010958,2]
[353818735,1740077445835,-500.0,0.00010958,2]
[353818736,1740077445845,-500.0,0.00010958,2]
[353818737,1740077445854,-500.0,0.00010958,2]
[353818738,1740077445864,-500.0,0.00010958,2]
[353818739,1740077445873,-500.0,0.00010958,2]
[353818741,1740077445883,-500.0,0.00010958,2]
[353818743,1740077445893,-261.26,0.00010958,2]
[353818745,1740077445903,-500.0,0.00010958,2]
[353818747,1740077445914,-500.0,0.00010958,2]
[353818749,1740077445924,-500.0,0.00010958,2]
[353818751,1740077445934,-500.0,0.00010958,2]
[353818753,1740077445943,-500.0,0.00010958,2]
[353818755,1740077445953,-500.0,0.00010958,2]
[353818757,1740077445962,-500.0,0.00010958,2]
[353818760,1740077445972,-500.0,0.00010958,2]
[353818763,1740077445982,-500.0,0.00010958,2]
[353818766,1740077445992,-500.0,0.00010958,2]
[353818769,1740077446002,-500.0,0.00010958,2]
[353818772,1740077446014,-500.0,0.00010958,2]
[353818775,1740077446023,-500.0,0.00010958,2]
[353818778,1740077446032,-500.0,0.00010958,2]
[353818780,1740077446044,-500.0,0.00010958,2]
[353818782,1740077446053,-500.0,0.00010958,2]
[353818784,1740077446064,-583.98,0.00010958,2]
[353818786,1740077446073,-500.0,0.00010958,2]
[353818788,1740077446082,-500.0,0.00010958,2]
[353818790,1740077446091,-500.0,0.00010958,2]
[353818792,1740077446100,-521.7,0.00010958,2]
[353818794,1740077446111,-427.34,0.00010958,2]
[353818796,1740077446120,-431.277778,0.00010958,2]
[353818798,1740077446130,-500.0,0.00010958,2]
[353818800,1740077446139,-219.07,0.00010958,2]
[353818801,1740077446148,-500.0,0.00010958,2]
[353818804,1740077446160,-500.0,0.00010958,2]
[353818806,1740077446169,-500.0,0.00010958,2]
[353818808,1740077446179,-500.0,0.00010958,2]
[353818809,1740077446189,-500.0,0.00010958,2]
[353818811,1740077446199,-500.0,0.00010958,2]
[353818813,1740077446208,-250.71,0.00010958,2]
[353818815,1740077446217,-500.0,0.00010958,2]
[353818817,1740077446227,-500.0,0.00010958,2]
[353818819,1740077446236,-500.0,0.00010958,2]
[353818821,1740077446246,-156.14,0.00010958,2]
[353818823,1740077446256,-500.0,0.00010958,2]
[353818825,1740077446267,-500.0,0.00010958,2]
[353818827,1740077446276,-616.54,0.00010958,2]
[353818829,1740077446286,-500.0,0.00010958,2]
[353818831,1740077446295,-500.0,0.00010958,2]
[353818833,1740077446305,-500.0,0.00010958,2]
[353818835,1740077446315,-500.0,0.00010958,2]
[353818837,1740077446325,-500.0,0.00010958,2]
[353818839,1740077446335,-500.0,0.00010958,2]
[353818841,1740077446345,-270.53,0.00010958,2]
[353818843,1740077446354,-500.0,0.00010958,2]
[353818845,1740077446364,-500.0,0.00010958,2]
[353818847,1740077446373,-500.0,0.00010958,2]
[353818849,1740077446383,-500.0,0.00010958,2]
[353818852,1740077446394,-500.0,0.00010958,2]
[353818854,1740077446404,-500.0,0.00010958,2]
[353818855,1740077446413,-500.0,0.00010958,2]
[353818858,1740077446422,-500.0,0.00010958,2]
[353818859,1740077446431,-500.0,0.00010958,2]
[353818861,1740077446441,-500.0,0.00010958,2]
[353818864,1740077446451,-500.0,0.00010958,2]
[353818866,1740077446461,-500.0,0.00010958,2]
[353818867,1740077446471,-500.0,0.00010958,2]
[353818869,1740077446480,-500.0,0.00010958,2]
[353818871,1740077446490,-500.0,0.00010958,2]
[353818874,1740077446500,-500.0,0.00010958,2]
[353818876,1740077446510,-500.0,0.00010958,2]
[353818877,1740077446520,-500.0,0.00010958,2]
[353818879,1740077446529,-500.0,0.00010958,2]
[353818881,1740077446538,-500.0,0.00010958,2]
[353818883,1740077446548,-500.0,0.00010958,2]
[353818885,1740077446557,-500.0,0.00010958,2]
[353818887,1740077446566,-500.0,0.00010958,2]
[353818889,1740077446576,-500.0,0.00010958,2]
[353818891,1740077446585,-500.0,0.00010958,2]
[353818893,1740077446595,-500.0,0.00010958,2]
[353818895,1740077446604,-500.0,0.00010958,2]
[353818898,1740077446614,-500.0,0.00010958,2]
[353818899,1740077446623,-500.0,0.00010958,2]
[353818901,1740077446632,-500.0,0.00010958,2]
[353818903,1740077446641,-500.0,0.00010958,2]
[353818906,1740077446651,-500.0,0.00010958,2]
[353818909,1740077446671,-500.0,0.00010958,2]
[353818911,1740077446682,-500.0,0.00010958,2]
[353818913,1740077446693,-500.0,0.00010958,2]
[353818915,1740077446703,-500.0,0.00010958,2]
[353818917,1740077446712,-641.09,0.00010958,2]
[353818919,1740077446723,-500.0,0.00010958,2]
[353818921,1740077446732,-500.0,0.00010958,2]
[353818923,1740077446742,-500.0,0.00010958,2]
[353818925,1740077446752,-323.23217712,0.00010958,2]
[353818927,1740077446762,-500.0,0.00010958,2]
[353818929,1740077446772,-500.0,0.00010958,2]
[353818931,1740077446782,-500.0,0.00010958,2]
[353818933,1740077446792,-500.0,0.00010958,2]
[353818935,1740077446801,-500.0,0.00010958,2]
[353818937,1740077446811,-500.0,0.00010958,2]
[353818939,1740077446821,-500.0,0.00010958,2]
[353818941,1740077446831,-575.76,0.00010958,2]
[353818943,1740077446841,-571.43180763,0.00010958,2]
[353818945,1740077446851,-500.0,0.00010958,2]
[353818947,1740077446861,-602.94,0.00010958,2]
[353818950,1740077446871,-500.0,0.00010958,2]
[353818952,1740077446881,-500.0,0.00010958,2]
[353818954,1740077446890,-500.0,0.00010958,2]
[353818956,1740077446900,-500.0,0.00010958,2]
[353818958,1740077446909,-500.0,0.00010958,2]
[353818960,1740077446919,-500.0,0.00010958,2]
[353818962,1740077446928,-500.0,0.00010958,2]
[353818964,1740077446938,-194.06229993,0.00010958,2]
[353818966,1740077446948,-151.0,0.00010959,2]
[353818968,1740077446959,-150.0,0.00010959,2]
[353818970,1740077446969,-500.0,0.0001097,2]
[353818972,1740077446978,-150.0,0.00010973,2]
[353818974,1740077446987,-150.0,0.00010973,2]
[353818976,1740077446997,-150.0,0.00010973,2]
[353818978,1740077447006,-1141.25,0.00010977,2]
[353818980,1740077447017,-250.22015077,0.0001099,2]
[353818982,1740077447026,-166.66,0.00010999,2]
[353818984,1740077447037,-895.2644972,0.00010999,2]
[353818986,1740077447050,-151.0,0.00010999,2]
[353818988,1740077447059,-127199.94435065,0.00011,2]
[353818990,1740077447069,-151.0,0.00011,2]
[353818992,1740077447079,-153.16253,0.00011,2]
[353818994,1740077447089,-151.0,0.00011,2]
[353818996,1740077447099,-151.890384,0.00011,2]
[353818998,1740077447108,-150.0,0.00011,2]
[353819000,1740077447118,-500.0,0.00011,2]
[353819002,1740077447127,-150.0,0.00011023,2]
[353819004,1740077447136,-74951.43921232,0.00011023,2]
[353819006,1740077447146,-1000.0,0.00011035,2]
[353819009,1740077447156,-500.0,0.00011041,2]
[353819011,1740077447166,-500.0,0.00011041,2]
[353819013,1740077447175,-592.62,0.00011041,2]
[353819015,1740077447185,-500.0,0.00011041,2]
[353819017,1740077447194,-221.8,0.00011041,2]
[353819019,1740077447203,-795.17,0.00011041,2]
[353819021,1740077447212,-157.841228,0.00011041,2]
[353819023,1740077447222,-395.46,0.00011041,2]
[353819025,1740077447231,-500.0,0.00011041,2]
[353819027,1740077447241,-284.94,0.00011041,2]
[353819029,1740077447250,-500.0,0.00011041,2]
[353819031,1740077447260,-500.0,0.00011041,2]
[353819033,1740077447269,-500.0,0.00011041,2]
[353819035,1740077447279,-367.44,0.00011041,2]
[353819037,1740077447290,-500.0,0.00011041,2]
[353819039,1740077447304,-500.0,0.00011041,2]
[353819041,1740077447316,-179.147095,0.00011041,2]
[353819043,1740077447329,-500.0,0.00011041,2]
[353819045,1740077447338,-500.0,0.00011041,2]
[353819047,1740077447347,-221.45,0.00011041,2]
[353819049,1740077447357,-247.29,0.00011041,2]
[353819051,1740077447366,-252.35,0.00011041,2]
[353819053,1740077447376,-500.0,0.00011041,2]
[353819055,1740077447385,-500.0,0.00011041,2]
[353819057,1740077447395,-500.0,0.00011041,2]
[353819059,1740077447404,-500.0,0.00011041,2]
[353819061,1740077447414,-500.0,0.00011041,2]
[353819063,1740077447423,-500.0,0.00011041,2]
[353819065,1740077447432,-500.0,0.00011041,2]
[353819067,1740077447441,-500.0,0.00011041,2]
[353819069,1740077447451,-500.0,0.00011041,2]
[353819071,1740077447460,-500.0,0.00011041,2]
[353819073,1740077447469,-500.0,0.00011041,2]
[353819075,1740077447479,-500.0,0.00011041,2]
[353819077,1740077447489,-500.0,0.00011041,2]
[353819079,1740077447498,-500.0,0.00011041,2]
[353819081,1740077447507,-500.0,0.00011041,2]
[353819083,1740077447520,-500.0,0.00011041,2]
[353819086,1740077447533,-308.33,0.00011041,2]
[353819088,1740077447543,-500.0,0.00011041,2]
[353819090,1740077447552,-500.0,0.00011041,2]
[353819092,1740077447561,-500.0,0.00011041,2]
[353819094,1740077447571,-215.5499711,0.00011041,2]
[353819096,1740077447581,-500.0,0.00011041,2]
[353819098,1740077447590,-500.0,0.00011041,2]
[353819100,1740077447600,-500.0,0.00011041,2]
[353819102,1740077447609,-225.32,0.00011041,2]
[353819104,1740077447618,-500.0,0.00011041,2]
[353819106,1740077447628,-500.0,0.00011041,2]
[353819108,1740077447637,-500.0,0.00011041,2]
[353819110,1740077447646,-445.16,0.00011041,2]
[353819112,1740077447656,-181.9,0.00011041,2]
[353819114,1740077447666,-500.0,0.00011041,2]
[353819116,1740077447675,-556.6,0.00011041,2]
[353819118,1740077447685,-500.0,0.00011041,2]
[353819120,1740077447694,-500.0,0.00011041,2]
[353819122,1740077447703,-500.0,0.00011041,2]
[353819124,1740077447712,-500.0,0.00011041,2]
[353819126,1740077447721,-500.0,0.00011041,2]
[353819128,1740077447731,-618.93,0.00011041,2]
[353819130,1740077447740,-500.0,0.00011041,2]
[353819132,1740077447749,-500.0,0.00011041,2]
[353819134,1740077447759,-500.0,0.00011041,2]
[353819136,1740077447769,-550.26006537,0.00011041,2]
[353819138,1740077447779,-534.3,0.00011041,2]
[353819140,1740077447788,-500.0,0.00011041,2]
[353819142,1740077447798,-500.0,0.00011041,2]
[353819144,1740077447807,-491.41,0.00011041,2]
[353819146,1740077447817,-500.0,0.00011041,2]
[353819148,1740077447826,-500.0,0.00011041,2]
[353819150,1740077447836,-500.0,0.00011041,2]
[353819152,1740077447846,-500.0,0.00011041,2]
[353819154,1740077447855,-583.98,0.00011041,2]
[353819156,1740077447864,-392.39,0.00011041,2]
[353819158,1740077447874,-500.0,0.00011041,2]
[353819160,1740077447883,-500.0,0.00011041,2]
[353819162,1740077447893,-500.0,0.00011041,2]
[353819164,1740077447902,-500.0,0.00011041,2]
[353819166,1740077447912,-500.0,0.00011041,2]
[353819168,1740077447922,-500.0,0.00011041,2]
[353819170,1740077447931,-500.0,0.00011041,2]
[353819172,1740077447942,-500.0,0.00011041,2]
[353819173,1740077447953,-500.0,0.00011041,2]
[353819174,1740077447962,-500.0,0.00011041,2]
[353819175,1740077447972,-500.0,0.00011041,2]
[353819176,1740077447982,-500.0,0.00011041,2]
[353819177,1740077447991,-500.0,0.00011041,2]
[353819178,1740077448001,-500.0,0.00011041,2]
[353819179,1740077448011,-500.0,0.00011041,2]
[353819180,1740077448021,-500.0,0.00011041,2]
[353819181,1740077448032,-500.0,0.00011041,2]
[353819183,1740077448044,-500.0,0.00011041,2]
[353819185,1740077448054,-500.0,0.00011041,2]
[353819187,1740077448063,-333.0,0.00011041,2]
[353819189,1740077448074,-500.0,0.00011041,2]
[353819191,1740077448083,-500.0,0.00011041,2]
[353819193,1740077448093,-500.0,0.00011041,2]
[353819195,1740077448103,-500.0,0.00011041,2]
[353819197,1740077448112,-500.0,0.00011041,2]
[353819199,1740077448122,-500.0,0.00011041,2]
[353819201,1740077448131,-500.0,0.00011041,2]
[353819203,1740077448141,-500.0,0.00011041,2]
[353819205,1740077448151,-500.0,0.00011041,2]
[353819207,1740077448161,-278.29,0.00011041,2]
[353819209,1740077448171,-361.01232181,0.00011041,2]
[353819211,1740077448181,-160.4,0.00011041,2]
[353819213,1740077448190,-500.0,0.00011041,2]
[353819215,1740077448203,-255.93649437,0.00011041,2]
[353819217,1740077448213,-468.31182288,0.00011041,2]
[353819219,1740077448222,-500.0,0.00011041,2]
[353819221,1740077448231,-263.45,0.00011041,2]
[353819223,1740077448241,-500.0,0.00011041,2]
[353819225,1740077448250,-532.25835412,0.00011041,2]
[353819227,1740077448261,-500.0,0.00011041,2]
[353819229,1740077448270,-150.0,0.00011052,2]
[353819231,1740077448280,-300.0,0.00011098,2]
[353819233,1740077448290,-300.0,0.00011098,2]
[353819235,1740077448299,-28057.63561796,0.00011099,2]
[353819237,1740077448309,-28057.63561789,0.00011099,2]
[353819239,1740077448318,-28057.63561789,0.00011099,2]
[353819241,1740077448327,-28057.63561789,0.00011099,2]
[353819243,1740077448337,-28057.63561789,0.00011099,2]
[353819245,1740077448346,-20325.88423497,0.00011099,2]
[353819247,1740077448356,-20325.88423497,0.00011099,2]
[353819249,1740077448365,-20325.88423497,0.00011099,2]
[353819251,1740077448374,-20325.88423497,0.00011099,2]
[353819253,1740077448384,-151.0,0.00011099,2]
[353819256,1740077448394,-151.0,0.00011099,2]
[353819257,1740077448404,-3383.36978,0.000111,2]
[353819260,1740077448414,-480.600656,0.00011123,2]
[353819262,1740077448423,-204.79461779,0.00011123,2]
[353819264,1740077448432,-458.09,0.00011123,2]
[353819266,1740077448443,-190.12,0.00011123,2]
[353819267,1740077448453,-795.17,0.00011123,2]
[353819270,1740077448463,-157.841228,0.00011123,2]
[353819271,1740077448472,-500.0,0.00011123,2]
[353819273,1740077448482,-500.0,0.00011123,2]
[353819276,1740077448491,-286.78,0.00011123,2]
[353819278,1740077448501,-401.36,0.00011123,2]
[353819279,1740077448511,-195.28,0.00011123,2]
[353819281,1740077448521,-365.43,0.00011123,2]
[353819283,1740077448531,-179.147095,0.00011123,2]
[353819286,1740077448542,-500.0,0.00011123,2]
[353819288,1740077448552,-500.0,0.00011123,2]
[353819290,1740077448562,-500.0,0.00011123,2]
[353819292,1740077448572,-422.19,0.00011123,2]
[353819294,1740077448581,-161.26,0.00011123,2]
[353819296,1740077448591,-389.09,0.00011123,2]
[353819298,1740077448600,-649.61,0.00011123,2]
[353819300,1740077448610,-150.0,0.00011123,2]
[353819302,1740077448624,-500.0,0.00011123,2]
[353819304,1740077448633,-337.76,0.00011123,2]
[353819305,1740077448644,-500.86,0.00011123,2]
[353819306,1740077448654,-329.31,0.00011123,2]
[353819307,1740077448664,-440.56008841,0.00011123,2]
[353819308,1740077448674,-277.69,0.00011123,2]
[353819309,1740077448683,-500.0,0.00011123,2]
[353819310,1740077448692,-561.23,0.00011123,2]
[353819311,1740077448701,-625.78,0.00011123,2]
[353819312,1740077448711,-500.0,0.00011123,2]
[353819313,1740077448720,-500.0,0.00011123,2]
[353819314,1740077448729,-612.72,0.00011123,2]
[353819315,1740077448738,-500.0,0.00011123,2]
[353819316,1740077448748,-500.0,0.00011123,2]
[353819317,1740077448757,-500.0,0.00011123,2]
[353819318,1740077448768,-630.44,0.00011123,2]
[353819319,1740077448778,-500.0,0.00011123,2]
[353819320,1740077448787,-500.0,0.00011123,2]
[353819321,1740077448797,-291.94213095,0.00011123,2]
[353819322,1740077448806,-500.0,0.00011123,2]
[353819323,1740077448816,-500.0,0.00011123,2]
[353819324,1740077448825,-500.0,0.00011123,2]
[353819325,1740077448835,-304.89,0.00011123,2]
[353819326,1740077448844,-500.0,0.00011123,2]
[353819327,1740077448853,-500.0,0.00011123,2]
[353819328,1740077448863,-500.0,0.00011123,2]
[353819329,1740077448872,-593.12,0.00011123,2]
[353819330,1740077448882,-500.0,0.00011123,2]
[353819331,1740077448895,-500.0,0.00011123,2]
[353819332,1740077448905,-596.29,0.00011123,2]
[353819333,1740077448914,-500.0,0.00011123,2]
[353819334,1740077448924,-500.0,0.00011123,2]
[353819335,1740077448934,-500.0,0.00011123,2]
[353819336,1740077448943,-618.30911836,0.00011123,2]
[353819337,1740077448955,-500.0,0.00011123,2]
[353819338,1740077448965,-583.98,0.00011123,2]
[353819339,1740077448975,-619.53,0.00011123,2]
[353819340,1740077448984,-500.0,0.00011123,2]
[353819341,1740077448994,-500.0,0.00011123,2]
[353819342,1740077449004,-495.56,0.00011123,2]
[353819343,1740077449015,-500.0,0.00011123,2]
[353819344,1740077449025,-230.45,0.00011123,2]
[353819346,1740077449036,-500.0,0.00011123,2]
[353819348,1740077449049,-500.0,0.00011123,2]
[353819350,1740077449059,-500.0,0.00011123,2]
[353819353,1740077449068,-500.0,0.00011123,2]
[353819354,1740077449078,-500.0,0.00011123,2]
[353819356,1740077449088,-500.0,0.00011123,2]
[353819359,1740077449097,-500.0,0.00011123,2]
[353819360,1740077449107,-500.0,0.00011123,2]
[353819362,1740077449117,-500.0,0.00011123,2]
[353819365,1740077449127,-233.58,0.00011123,2]
[353819367,1740077449137,-500.0,0.00011123,2]
[353819368,1740077449146,-500.0,0.00011123,2]
[353819370,1740077449156,-372.52,0.00011123,2]
[353819372,1740077449166,-498.66,0.00011123,2]
[353819374,1740077449175,-500.0,0.00011123,2]
[353819377,1740077449185,-500.0,0.00011123,2]
[353819378,1740077449194,-500.0,0.00011123,2]
[353819381,1740077449204,-500.0,0.00011123,2]
[353819383,1740077449214,-500.0,0.00011123,2]
[353819384,1740077449223,-500.0,0.00011123,2]
[353819387,1740077449232,-500.0,0.00011123,2]
[353819389,1740077449243,-297.65,0.00011123,2]
[353819391,1740077449253,-500.0,0.00011123,2]
[353819393,1740077449263,-150.0,0.00011123,2]
[353819395,1740077449273,-1054.0,0.00011123,2]
[353819397,1740077449282,-500.0,0.00011123,2]
[353819399,1740077449291,-500.0,0.00011123,2]
[353819401,1740077449301,-500.0,0.00011123,2]
[353819403,1740077449310,-150.0,0.00011144,2]
[353819405,1740077449319,-150.0,0.0001115,2]
[353819407,1740077449329,-500.0,0.0001115,2]
[353819409,1740077449338,-1054.0,0.0001115,2]
[353819411,1740077449348,-150.0,0.00011168,2]
[353819413,1740077449358,-150.0,0.00011178,2]
[353819415,1740077449367,-507.498568,0.00011178,2]
[353819417,1740077449377,-1054.0,0.00011178,2]
[353819419,1740077449387,-1366.3122119,0.00011197,2]
[353819421,1740077449396,-795.17,0.00011205,2]
[353819423,1740077449406,-157.841228,0.00011205,2]
[353819425,1740077449415,-320.06,0.00011205,2]
[353819427,1740077449425,-515.77,0.00011205,2]
[353819429,1740077449435,-179.147095,0.00011205,2]
[353819431,1740077449444,-520.74,0.00011205,2]
[353819433,1740077449453,-320.65,0.00011205,2]
[353819435,1740077449463,-520.01,0.00011205,2]
[353819437,1740077449472,-229.31,0.00011205,2]
[353819439,1740077449482,-260.78,0.00011205,2]
[353819441,1740077449491,-194.94,0.00011205,2]
[353819443,1740077449502,-500.0,0.00011205,2]
[353819445,1740077449512,-500.0,0.00011205,2]
[353819447,1740077449521,-500.0,0.00011205,2]
[353819449,1740077449531,-500.0,0.00011205,2]
[353819451,1740077449540,-500.0,0.00011205,2]
[353819453,1740077449549,-500.0,0.00011205,2]
[353819455,1740077449558,-500.0,0.00011205,2]
[353819457,1740077449568,-500.0,0.00011205,2]
[353819459,1740077449578,-500.0,0.00011205,2]
[353819461,1740077449587,-500.0,0.00011205,2]
[353819463,1740077449597,-500.0,0.00011205,2]
[353819465,1740077449606,-500.0,0.00011205,2]
[353819467,1740077449615,-540.61,0.00011205,2]
[353819469,1740077449624,-500.0,0.00011205,2]
[353819471,1740077449634,-451.33,0.00011205,2]
[353819473,1740077449643,-505.32,0.00011205,2]
[353819475,1740077449653,-583.98,0.00011205,2]
[353819477,1740077449663,-500.0,0.00011205,2]
[353819479,1740077449673,-500.0,0.00011205,2]
[353819481,1740077449683,-500.0,0.00011205,2]
[353819483,1740077449693,-500.0,0.00011205,2]
[353819485,1740077449702,-635.79,0.00011205,2]
[353819487,1740077449712,-500.0,0.00011205,2]
[353819489,1740077449722,-500.0,0.00011205,2]
[353819491,1740077449731,-500.0,0.00011205,2]
[353819493,1740077449741,-500.0,0.00011205,2]
[353819495,1740077449751,-500.0,0.00011205,2]